Workbook

Sheet OPPUSSINGSKOSTNADER
B1: ARBEIDSBOK MED KOSTNADER FOR KJØKKENOPPUSSING
B3: Kategori | C3: Artikler | D3: Antall | E3: Estimerte kostnader | F3: Faktiske kostnader | G3: Totale estimerte kostnader | H3: Totale faktiske kostnader
B4: Skap | C4: Kjøkkenskap: Modulær standard (måles i centimeter) | D4: 25 | E4: kr 5.00 | G4: =Data[[#This Row],[Antall]]*Data[[#This Row],[Estimerte kostnader]] -> kr 125 | H4: =Data[[#This Row],[Antall]]*Data[[#This Row],[Faktiske kostnader]] -> kr 0
B5: Skap | C5: Overskap: Modulær standard (måles i centimeter) | D5: 25 | E5: kr 3.50 | G5: =Data[[#This Row],[Antall]]*Data[[#This Row],[Estimerte kostnader]] -> kr 88 | H5: =Data[[#This Row],[Antall]]*Data[[#This Row],[Faktiske kostnader]] -> kr 0
B6: Rengjøringsutstyr | C6: Oppvaskmaskin: Standard | D6: 1 | E6: kr 250.00 | G6: =Data[[#This Row],[Antall]]*Data[[#This Row],[Estimerte kostnader]] -> kr 250 | H6: =Data[[#This Row],[Antall]]*Data[[#This Row],[Faktiske kostnader]] -> kr 0
B7: Rengjøringsutstyr | C7: Avfallskvern: Standard | D7: 1 | E7: kr 175.00 | G7: =Data[[#This Row],[Antall]]*Data[[#This Row],[Estimerte kostnader]] -> kr 175 | H7: =Data[[#This Row],[Antall]]*Data[[#This Row],[Faktiske kostnader]] -> kr 0
B8: Komfyrer og stekeovner | C8: Område: Standard innbygd | D8: 1 | E8: kr 375.00 | G8: =Data[[#This Row],[Antall]]*Data[[#This Row],[Estimerte kostnader]] -> kr 375 | H8: =Data[[#This Row],[Antall]]*Data[[#This Row],[Faktiske kostnader]] -> kr 0
B9: Komfyrer og stekeovner | C9: Mikrobølgeovn: Standard | D9: 1 | E9: kr 300.00 | G9: =Data[[#This Row],[Antall]]*Data[[#This Row],[Estimerte kostnader]] -> kr 300 | H9: =Data[[#This Row],[Antall]]*Data[[#This Row],[Faktiske kostnader]] -> kr 0
B10: Benkeplater | C10: Solid overflate (måles i centimeter) | D10: 23 | E10: kr 10.00 | G10: =Data[[#This Row],[Antall]]*Data[[#This Row],[Estimerte kostnader]] -> kr 230 | H10: =Data[[#This Row],[Antall]]*Data[[#This Row],[Faktiske kostnader]] -> kr 0
B11: Dører | C11: Innvendig: Massivkjerne med finer utenpå | D11: 1 | E11: kr 65.00 | G11: =Data[[#This Row],[Antall]]*Data[[#This Row],[Estimerte kostnader]] -> kr 65 | H11: =Data[[#This Row],[Antall]]*Data[[#This Row],[Faktiske kostnader]] -> kr 0
B12: Tilleggsutstyr | C12: Tilleggsutstyr: Standard umiddelbart varmt vann | D12: 1 | E12: kr 120.00 | G12: =Data[[#This Row],[Antall]]*Data[[#This Row],[Estimerte kostnader]] -> kr 120 | H12: =Data[[#This Row],[Antall]]*Data[[#This Row],[Faktiske kostnader]] -> kr 0
B13: Tilleggsutstyr | C13: Tilleggsutstyr: Såpedispenser | D13: 1 | E13: kr 40.00 | G13: =Data[[#This Row],[Antall]]*Data[[#This Row],[Estimerte kostnader]] -> kr 40 | H13: =Data[[#This Row],[Antall]]*Data[[#This Row],[Faktiske kostnader]] -> kr 0
B14: Kraner | C14: Kran: Håndtak, standard | D14: 1 | E14: kr 130.00 | G14: =Data[[#This Row],[Antall]]*Data[[#This Row],[Estimerte kostnader]] -> kr 130 | H14: =Data[[#This Row],[Antall]]*Data[[#This Row],[Faktiske kostnader]] -> kr 0
B15: Gulvbelegg | C15: Laminat (måles i kvadratcentimeter) | D15: 165 | E15: kr 3.50 | G15: =Data[[#This Row],[Antall]]*Data[[#This Row],[Estimerte kostnader]] -> kr 578 | H15: =Data[[#This Row],[Antall]]*Data[[#This Row],[Faktiske kostnader]] -> kr 0
B16: Vaskemaskiner og tørketromler | C16: Vaskemaskin: Standard | D16: 1 | E16: kr 500.00 | G16: =Data[[#This Row],[Antall]]*Data[[#This Row],[Estimerte kostnader]] -> kr 500 | H16: =Data[[#This Row],[Antall]]*Data[[#This Row],[Faktiske kostnader]] -> kr 0
B17: Vaskemaskiner og tørketromler | C17: Tørketrommel: Standard | D17: 1 | E17: kr 375.00 | G17: =Data[[#This Row],[Antall]]*Data[[#This Row],[Estimerte kostnader]] -> kr 375 | H17: =Data[[#This Row],[Antall]]*Data[[#This Row],[Faktiske kostnader]] -> kr 0
B18: Belysning | C18: Belysning: Senket belysning | D18: 4 | E18: kr 35.00 | G18: =Data[[#This Row],[Antall]]*Data[[#This Row],[Estimerte kostnader]] -> kr 140 | H18: =Data[[#This Row],[Antall]]*Data[[#This Row],[Faktiske kostnader]] -> kr 0
B19: Kjøleskap | C19: Kjøleskap: Frittstående, luksusmodell | D19: 1 | E19: kr 1,200.00 | G19: =Data[[#This Row],[Antall]]*Data[[#This Row],[Estimerte kostnader]] -> kr 1,200 | H19: =Data[[#This Row],[Antall]]*Data[[#This Row],[Faktiske kostnader]] -> kr 0
B20: Vasker | C20: Dobbel vask i rustfritt stål, luksusmodell | D20: 1 | E20: kr 125.00 | G20: =Data[[#This Row],[Antall]]*Data[[#This Row],[Estimerte kostnader]] -> kr 125 | H20: =Data[[#This Row],[Antall]]*Data[[#This Row],[Faktiske kostnader]] -> kr 0
B21: Ventilasjon | C21: Vifteenhet: Standard avtrekksrør | D21: 1 | E21: kr 180.00 | G21: =Data[[#This Row],[Antall]]*Data[[#This Row],[Estimerte kostnader]] -> kr 180 | H21: =Data[[#This Row],[Antall]]*Data[[#This Row],[Faktiske kostnader]] -> kr 0
B22: Vegger | C22: Veggpanel (måles i kvadratcentimeter) | D22: 70 | E22: kr 2.00 | G22: =Data[[#This Row],[Antall]]*Data[[#This Row],[Estimerte kostnader]] -> kr 140 | H22: =Data[[#This Row],[Antall]]*Data[[#This Row],[Faktiske kostnader]] -> kr 0
B23: Vinduer | C23: Som kan skyves | D23: 2 | E23: kr 120.00 | G23: =Data[[#This Row],[Antall]]*Data[[#This Row],[Estimerte kostnader]] -> kr 240 | H23: =Data[[#This Row],[Antall]]*Data[[#This Row],[Faktiske kostnader]] -> kr 0
B24: Annet | G24: =Data[[#This Row],[Antall]]*Data[[#This Row],[Estimerte kostnader]] -> kr 0 | H24: =Data[[#This Row],[Antall]]*Data[[#This Row],[Faktiske kostnader]] -> kr 0
B25: Totalt | E25: =SUBTOTAL(109,Data[Estimerte kostnader]) -> kr 4,014.00 | F25: =SUBTOTAL(109,Data[Faktiske kostnader]) -> kr 0.00 | G25: =SUBTOTAL(109,Data[Totale estimerte kostnader]) -> kr 5,375.00 | H25: =SUBTOTAL(109,Data[Totale faktiske kostnader]) -> kr 0.00
B26: Delsum | G26: =SUBTOTAL(109,Data[Totale estimerte kostnader]) -> kr 5,375.00 | H26: =SUBTOTAL(109,Data[Totale faktiske kostnader]) -> kr 0.00
B27: Uforutsette kostnader – Legg til 30 % | G27: =G26*0.3 -> kr 1,612.50 | H27: =H26*0.3 -> kr 0.00
B28: Totalt | G28: =SUM(G26:G27) -> kr 6,987.50 | H28: =SUM(H26:H27) -> kr 0.00
